fUSD/lending_fUSD_20250620
["ID","MTS","AMOUNT","RATE_DAILY","PERIOD"]
[366709001,1750415605724,-604.2026131,0.00028229,4]
[366709002,1750415605734,-525.6,0.00028229,4]
[366709003,1750415605744,-490.0,0.00028229,4]
[366709004,1750415605753,-737.94,0.00028229,4]
[366709005,1750415605763,-490.0,0.00028229,4]
[366709006,1750415605773,-490.0,0.00028229,4]
[366709007,1750415605782,-490.0,0.00028229,4]
[366709008,1750415605792,-616.11,0.00028229,4]
[366709009,1750415605802,-749.2,0.00028229,4]
[366709010,1750415605812,-1450.49,0.00028229,4]
[366709011,1750415605822,-733.41,0.00028229,4]
[366709012,1750415605832,-490.0,0.00028229,4]
[366709013,1750415605843,-2517.34,0.00028229,4]
[366709014,1750415605855,-490.0,0.00028229,4]
[366709015,1750415605865,-490.0,0.00028229,4]
[366709016,1750415605874,-647.98,0.00028229,4]
[366709017,1750415605884,-1420.61,0.00028229,4]
[366709018,1750415605894,-666.21,0.00028229,4]
[366709019,1750415605903,-490.0,0.00028229,4]
[366709020,1750415605912,-798.3,0.00028229,4]
[366709021,1750415605921,-490.0,0.00028229,4]
[366709022,1750415605931,-490.0,0.00028229,4]
[366709023,1750415605940,-490.0,0.00028229,4]
[366709024,1750415605949,-629.3,0.00028229,4]
[366709025,1750415605959,-744.22,0.00028229,4]
[366709026,1750415605968,-490.0,0.00028229,4]
[366709027,1750415605978,-824.71,0.00028229,4]
[366709028,1750415605987,-1579.86,0.00028229,4]
[366709029,1750415605997,-490.0,0.00028229,4]
[366709030,1750415606006,-204.76198608,0.00028229,4]
[366709031,1750415606016,-509.05,0.00028229,4]
[366709032,1750415606025,-2238.49,0.00028229,4]
[366709033,1750415606034,-490.0,0.00028229,4]
[366709034,1750415606044,-597.0,0.00028229,4]
[366709035,1750415606054,-490.0,0.00028229,4]
[366709036,1750415606064,-933.51,0.00028229,4]
[366709037,1750415606074,-490.0,0.00028229,4]
[366709038,1750415606083,-822.58,0.00028229,4]
[366709039,1750415606093,-838.77,0.00028229,4]
[366709040,1750415606102,-504.68,0.00028229,4]
[366709041,1750415606112,-507.81,0.00028229,4]
[366709042,1750415606121,-490.0,0.00028229,4]
[366709043,1750415606130,-490.0,0.00028229,4]
[366709044,1750415606139,-490.0,0.00028229,4]
[366709045,1750415606149,-572.5,0.00028229,4]
[366709046,1750415606159,-490.0,0.00028229,4]
[366709047,1750415606169,-490.0,0.00028229,4]
[366709048,1750415606179,-1129.55,0.00028229,4]
[366709049,1750415606188,-858.91,0.00028229,4]
[366709050,1750415606200,-490.0,0.00028229,4]
[366709051,1750415606210,-800.69,0.00028229,4]
[366709052,1750415606219,-1036.77,0.00028229,4]
[366709053,1750415606229,-490.0,0.00028229,4]
[366709054,1750415606238,-1310.63,0.00028229,4]
[366709055,1750415606247,-490.0,0.00028229,4]
[366709056,1750415606257,-867.83,0.00028229,4]
[366709057,1750415606266,-545.19,0.00028229,4]
[366709058,1750415606276,-1236.78,0.00028229,4]
[366709059,1750415606286,-490.0,0.00028229,4]
[366709060,1750415606295,-490.0,0.00028229,4]
[366709061,1750415606305,-509.27,0.00028229,4]
[366709062,1750415606314,-490.0,0.00028229,4]
[366709063,1750415606324,-518.28311305,0.00028229,4]
[366709064,1750415606334,-1804.01,0.00028229,4]
[366709065,1750415606343,-490.0,0.00028229,4]
[366709066,1750415606353,-490.0,0.00028229,4]
[366709067,1750415606363,-1718.47,0.00028229,4]
[366709068,1750415606372,-490.0,0.00028229,4]
[366709069,1750415606381,-528.49,0.00028229,4]
[366709070,1750415606390,-490.0,0.00028229,4]
[366709071,1750415606400,-808.69,0.00028229,4]
[366709072,1750415606409,-490.0,0.00028229,4]
[366709073,1750415606419,-490.0,0.00028229,4]
[366709074,1750415606428,-490.0,0.00028229,4]
[366709075,1750415606437,-726.13,0.00028229,4]
[366709076,1750415606447,-490.0,0.0002823,4]
[366709077,1750415606456,-490.0,0.0002823,4]
[366709078,1750415606465,-924.0,0.0002823,4]
[366709079,1750415606475,-490.0,0.0002823,4]
[366709080,1750415606484,-558.47597858,0.0002823,4]
[366709081,1750415606493,-490.0,0.0002823,4]
[366709082,1750415606503,-490.0,0.0002823,4]
[366709083,1750415606513,-490.0,0.0002823,4]
[366709084,1750415606523,-555.64,0.0002823,4]
[366709085,1750415606532,-490.0,0.0002823,4]
[366709086,1750415606542,-560.67,0.0002823,4]
[366709087,1750415606551,-714.6,0.0002823,4]
[366709088,1750415606560,-490.0,0.0002823,4]
[366709089,1750415606570,-490.0,0.0002823,4]
[366709090,1750415606579,-584.97,0.0002823,4]
[366709091,1750415606589,-490.0,0.0002823,4]
[366709092,1750415606598,-528.72,0.0002823,4]
[366709093,1750415606608,-490.0,0.0002823,4]
[366709094,1750415606617,-309.87002137,0.0002823,4]
[366709095,1750415606628,-490.0,0.0002823,4]
[366709096,1750415606638,-490.0,0.0002823,4]
[366709097,1750415606647,-490.0,0.0002823,4]
[366709098,1750415606656,-490.0,0.0002823,4]
[366709099,1750415606667,-595.37,0.0002823,4]
[366709100,1750415606679,-587.0,0.00028237,2]
[366709101,1750415606689,-234.0,0.00028238,2]
[366709102,1750415606702,-533.44,0.0002825,4]
[366709103,1750415606713,-1164.87,0.00028257,2]
[366709104,1750415606723,-1583.0,0.000283,2]
[366709105,1750415606735,-150.0,0.00028346,2]
[366709106,1750415606745,-775.47665243,0.00028348,18]
[366709107,1750415606756,-490.0,0.00028357,4]
[366709108,1750415606768,-250.0,0.000284,7]
[366709109,1750415606778,-250.0,0.000284,7]
[366709110,1750415606788,-250.0,0.000284,7]
[366709111,1750415606798,-250.0,0.000284,7]
[366709112,1750415606808,-500.0,0.00028412,120]
[366709113,1750415606818,-855.14,0.00028461,4]
[366709114,1750415606827,-490.0,0.00028461,4]
[366709115,1750415606837,-941.29,0.00028461,4]
[366709116,1750415606847,-710.39,0.00028471,4]
[366709117,1750415606857,-2657.88,0.00028471,4]
[366709118,1750415606866,-678.91,0.00028471,4]
[366709119,1750415606876,-951.97,0.00028471,4]
[366709120,1750415606886,-934.95,0.00028471,4]
[366709121,1750415606896,-982.82,0.00028471,4]
[366709122,1750415606905,-490.0,0.00028471,4]
[366709123,1750415606915,-1196.7,0.00028471,4]
[366709124,1750415606924,-905.13,0.00028471,4]
[366709125,1750415606934,-733.67,0.00028471,4]
[366709126,1750415606944,-623.14,0.00028471,4]
[366709127,1750415606954,-858.58,0.00028471,4]
[366709128,1750415606963,-4996.22,0.00028471,4]
[366709129,1750415606973,-1411.02,0.00028471,4]
[366709130,1750415606984,-490.0,0.00028471,4]
[366709131,1750415606993,-566.53,0.00028471,4]
[366709132,1750415607003,-673.04,0.00028471,4]
[366709133,1750415607012,-1000.0,0.00028471,4]
[366709134,1750415607022,-560.81,0.00028471,4]
[366709135,1750415607032,-5470.75,0.00028471,4]
[366709136,1750415607042,-490.0,0.00028471,4]
[366709137,1750415607052,-2781.24,0.00028471,4]
[366709138,1750415607062,-608.76,0.00028471,4]
[366709139,1750415607072,-622.46,0.00028471,4]
[366709140,1750415607082,-2671.47,0.00028471,4]
[366709141,1750415607092,-490.0,0.00028471,4]
[366709142,1750415607102,-807.14,0.00028471,4]
[366709143,1750415607112,-490.0,0.00028481,4]
[366709144,1750415607122,-490.0,0.00028481,4]
[366709145,1750415607131,-490.0,0.00028481,4]
[366709146,1750415607141,-490.0,0.00028481,4]
[366709147,1750415607150,-525.64,0.00028481,4]
[366709148,1750415607161,-490.0,0.00028481,4]
[366709149,1750415607171,-490.0,0.00028481,4]
[366709150,1750415607180,-490.0,0.00028481,4]
[366709151,1750415607190,-490.0,0.00028481,4]
[366709152,1750415607199,-824.86,0.00028481,4]
[366709153,1750415607212,-496.25754772,0.00028481,4]
[366709154,1750415607222,-490.0,0.00028481,4]
[366709155,1750415607231,-490.0,0.00028481,4]
[366709156,1750415607241,-493.28912962,0.00028481,4]
[366709157,1750415607251,-1042.35,0.00028481,4]
[366709158,1750415607260,-2063.423116,0.00028481,4]
[366709159,1750415607270,-1129.83,0.00028481,4]
[366709160,1750415607279,-490.0,0.00028481,4]
[366709161,1750415607289,-152.3464,0.00028481,4]
[366709162,1750415607299,-490.0,0.00028481,4]
[366709163,1750415607309,-2980.629608,0.00028481,4]
[366709164,1750415607319,-1443.11,0.00028481,4]
[366709165,1750415607328,-6813.75,0.00028481,4]
[366709166,1750415607337,-490.0,0.00028481,4]
[366709167,1750415607347,-977.73,0.00028481,4]
[366709168,1750415607357,-1060.66,0.00028481,4]
[366709169,1750415607366,-1271.04,0.00028481,4]
[366709170,1750415607376,-490.0,0.00028481,4]
[366709171,1750415607386,-1687.17,0.00028481,4]
[366709172,1750415607395,-490.0,0.00028481,4]
[366709173,1750415607405,-1425.44,0.00028481,4]
[366709174,1750415607415,-1260.23,0.00028481,4]
[366709175,1750415607424,-535.62,0.00028481,4]
[366709176,1750415607434,-600.47,0.00028481,4]
[366709177,1750415607444,-490.0,0.00028481,4]
[366709178,1750415607453,-7447.5,0.00028481,4]
[366709179,1750415607462,-490.0,0.00028481,4]
[366709180,1750415607472,-490.0,0.00028481,4]
[366709181,1750415607482,-998.98,0.00028481,4]
[366709182,1750415607492,-490.0,0.00028481,4]
[366709183,1750415607502,-1377.1,0.00028481,4]
[366709184,1750415607512,-4861.36,0.00028481,4]
[366709185,1750415607522,-1977.29,0.00028481,4]
[366709186,1750415607532,-1276.4,0.00028481,4]
[366709187,1750415607542,-2235.26,0.00028481,4]
[366709188,1750415607552,-2488.9,0.00028481,4]
[366709189,1750415607561,-1190.82,0.00028481,4]
[366709190,1750415607571,-712.91,0.00028481,4]
[366709191,1750415607581,-1879.2,0.00028481,4]
[366709192,1750415607591,-490.0,0.00028481,4]
[366709193,1750415607602,-3348.43,0.00028481,4]
[366709194,1750415607611,-2145.92,0.00028481,4]
[366709195,1750415607621,-3119.56,0.00028481,4]
[366709196,1750415607631,-3273.4,0.00028481,4]
[366709197,1750415607641,-151.0,0.00028482,2]
[366709198,1750415607650,-792.0,0.00028483,2]
[366709199,1750415607660,-490.0,0.00028483,4]
[366709200,1750415607669,-490.0,0.00028483,4]
[366709201,1750415607679,-490.0,0.00028483,4]
[366709202,1750415607688,-577.07794211,0.00028483,4]
[366709203,1750415607698,-490.0,0.00028483,4]
[366709204,1750415607708,-1480.37,0.00028483,4]
[366709205,1750415607717,-1643.1,0.00028483,4]
[366709206,1750415607726,-565.51,0.00028483,4]
[366709207,1750415607736,-492.45,0.00028483,4]
[366709208,1750415607745,-2032.33,0.00028483,4]
[366709209,1750415607755,-880.4,0.00028483,4]
[366709210,1750415607764,-490.0,0.00028483,4]
[366709211,1750415607775,-1088.85,0.00028483,4]
[366709212,1750415607788,-848.08,0.00028483,4]
[366709213,1750415607799,-912.78,0.00028483,4]
[366709214,1750415607810,-1634.09,0.00028483,4]
[366709215,1750415607822,-1838.84,0.00028483,4]
[366709216,1750415607834,-895.29,0.00028483,4]
[366709217,1750415607844,-818.8,0.00028483,4]
[366709218,1750415607854,-669.38,0.00028483,4]
[366709219,1750415607864,-490.0,0.00028483,4]
[366709220,1750415607874,-1627.01,0.00028483,4]
[366709221,1750415607884,-490.0,0.00028483,4]
[366709222,1750415607894,-490.0,0.00028483,4]
[366709223,1750415607905,-490.0,0.00028483,4]
[366709224,1750415607916,-1078.58,0.00028483,4]
[366709225,1750415607926,-994.67,0.00028483,4]
[366709226,1750415607939,-771.65,0.00028483,4]
[366709227,1750415607950,-490.0,0.00028483,4]
[366709228,1750415607960,-694.41,0.00028483,4]
[366709229,1750415607971,-490.0,0.00028483,4]
[366709230,1750415607981,-679.99,0.00028483,4]
[366709231,1750415607993,-2362.55,0.00028483,4]
[366709232,1750415608005,-490.0,0.00028483,4]
[366709233,1750415608015,-490.0,0.00028483,4]
[366709234,1750415608026,-490.0,0.00028483,4]
[366709235,1750415608037,-592.8,0.00028483,4]
[366709236,1750415608049,-490.0,0.00028483,4]
[366709237,1750415608059,-542.79,0.00028483,4]
[366709238,1750415608069,-1385.22,0.00028483,4]
[366709239,1750415608079,-1591.3,0.00028483,4]
[366709240,1750415608089,-490.0,0.00028483,4]
[366709241,1750415608099,-1073.69,0.00028483,4]
[366709242,1750415608109,-490.0,0.00028483,4]
[366709243,1750415608119,-616.36,0.00028483,4]
[366709244,1750415608129,-490.0,0.00028483,4]
[366709245,1750415608139,-490.0,0.00028483,4]
[366709246,1750415608150,-490.0,0.00028483,4]
[366709247,1750415608160,-583.29,0.00028483,4]
[366709248,1750415608171,-1175.68,0.00028483,4]
[366709249,1750415608182,-1312.24,0.00028483,4]
[366709250,1750415608193,-1363.77,0.00028483,4]
[366709251,1750415608203,-490.0,0.00028483,4]
[366709252,1750415608214,-770.8,0.00028483,4]
[366709253,1750415608224,-997.01,0.00028483,4]
[366709254,1750415608233,-989.39,0.00028483,4]
[366709255,1750415608243,-567.86,0.00028483,4]
[366709256,1750415608254,-1096.04,0.00028483,4]
[366709257,1750415608265,-1520.45,0.00028483,4]
[366709258,1750415608275,-805.39,0.00028483,4]
[366709259,1750415608284,-490.0,0.00028483,4]
[366709260,1750415608296,-479.33059282,0.00028483,4]
[366709261,1750415608306,-1428.58,0.00028483,4]
[366709262,1750415608316,-596.59,0.00028483,4]
[366709263,1750415608326,-5382.53,0.00028483,4]
[366709264,1750415608337,-490.0,0.00028483,4]
[366709265,1750415608348,-703.96,0.00028483,4]
[366709266,1750415608359,-1669.54,0.00028483,4]
[366709267,1750415608369,-1601.56,0.00028483,4]
[366709268,1750415608379,-2721.61,0.00028483,4]
[366709269,1750415608389,-490.0,0.00028483,4]
[366709270,1750415608399,-741.54,0.00028483,4]
[366709271,1750415608410,-669.76,0.00028483,4]
[366709272,1750415608420,-1225.01,0.00028483,4]
[366709273,1750415608430,-2422.36,0.00028483,4]
[366709274,1750415608441,-1005.68,0.00028483,4]
[366709275,1750415608451,-490.0,0.00028483,4]
[366709276,1750415608461,-2138.59,0.00028483,4]
[366709277,1750415608471,-617.03140644,0.00028483,4]
[366709278,1750415608482,-998.16,0.00028483,4]
[366709279,1750415608492,-4396.87,0.00028483,4]
[366709280,1750415608502,-933.76,0.00028483,4]
[366709281,1750415608512,-897.22,0.00028483,4]
[366709282,1750415608523,-1489.74,0.00028483,4]
[366709283,1750415608534,-2632.99,0.00028483,4]
[366709284,1750415608545,-490.0,0.00028483,4]
[366709285,1750415608556,-2115.45,0.00028483,4]
[366709286,1750415608567,-969.59,0.00028483,4]
[366709287,1750415608578,-1788.12,0.00028483,4]
[366709288,1750415608589,-587.84,0.00028483,4]
[366709289,1750415608599,-490.0,0.00028483,4]
[366709290,1750415608610,-747.47,0.00028483,4]
[366709291,1750415608620,-629.05,0.00028483,4]
[366709292,1750415608631,-1158.39,0.00028483,4]
[366709293,1750415608642,-4900.18,0.00028483,4]
[366709294,1750415608653,-490.0,0.00028483,4]
[366709295,1750415608662,-1552.28,0.00028483,4]
[366709296,1750415608672,-540.28,0.00028483,4]
[366709297,1750415608682,-1986.49,0.00028483,4]
[366709298,1750415608692,-2142.56,0.00028483,4]
[366709299,1750415608703,-675.46,0.00028483,4]
[366709300,1750415608713,-2131.24,0.00028483,4]
[366709301,1750415608723,-1335.47,0.00028483,4]
[366709302,1750415608733,-894.67,0.00028483,4]
[366709303,1750415608744,-3901.98,0.00028483,4]
[366709304,1750415608754,-694.78,0.00028483,4]
[366709305,1750415608765,-748.02,0.00028483,4]
[366709306,1750415608775,-2210.45,0.00028483,4]
[366709307,1750415608785,-1823.65,0.00028483,4]
[366709308,1750415608796,-1839.21,0.00028483,4]
[366709309,1750415608806,-2351.0,0.00028483,2]
[366709310,1750415608816,-951.3,0.00028483,4]
[366709311,1750415608826,-490.0,0.00028483,4]
[366709312,1750415608837,-828.87,0.00028483,4]
[366709313,1750415608848,-828.66,0.00028483,4]
[366709314,1750415608859,-2336.71,0.00028483,4]
[366709315,1750415608869,-1193.56,0.00028483,4]
[366709316,1750415608880,-1201.91,0.00028483,4]
[366709317,1750415608889,-1533.32,0.00028483,4]
[366709318,1750415608900,-2402.13,0.00028483,4]
[366709319,1750415608911,-2054.14,0.00028483,4]
[366709320,1750415608921,-250.0,0.00028486,15]
[366709321,1750415608931,-490.0,0.00028493,4]
[366709322,1750415608941,-490.0,0.00028493,4]
[366709323,1750415608953,-490.0,0.00028493,4]
[366709324,1750415608963,-490.0,0.00028493,4]
[366709325,1750415608973,-490.0,0.00028493,4]
[366709326,1750415608985,-490.0,0.00028493,4]
[366709327,1750415608995,-490.0,0.00028493,4]
[366709328,1750415609005,-490.0,0.00028493,4]
[366709329,1750415609017,-536.23,0.00028493,4]
[366709330,1750415609028,-490.0,0.00028493,4]
[366709331,1750415609038,-686.65,0.00028493,4]
[366709332,1750415609048,-490.0,0.00028493,4]
[366709333,1750415609060,-897.84,0.00028493,4]
[366709334,1750415609070,-793.14,0.00028493,4]
[366709335,1750415609081,-656.19,0.00028493,4]
[366709336,1750415609091,-490.0,0.00028493,4]
[366709337,1750415609102,-624.06,0.00028493,4]
[366709338,1750415609112,-490.0,0.00028493,4]
[366709339,1750415609123,-568.83,0.00028493,4]
[366709340,1750415609133,-402.69,0.00028493,4]
[366709341,1750415609143,-490.0,0.00028493,4]
[366709342,1750415609154,-697.89,0.00028493,4]
[366709343,1750415609165,-490.0,0.00028493,4]
[366709344,1750415609175,-490.0,0.00028493,4]
[366709345,1750415609185,-724.36,0.00028493,4]
[366709346,1750415609195,-490.0,0.00028493,4]
[366709347,1750415609209,-490.0,0.00028493,4]
[366709348,1750415609221,-1029.22,0.00028493,4]
[366709349,1750415609231,-490.0,0.00028493,4]
[366709350,1750415609242,-490.0,0.00028493,4]
[366709351,1750415609252,-490.0,0.00028493,4]
[366709352,1750415609262,-490.0,0.00028493,4]
[366709353,1750415609273,-490.0,0.00028493,4]
[366709354,1750415609283,-490.0,0.00028493,4]
[366709355,1750415609293,-490.0,0.00028493,4]
[366709356,1750415609304,-490.0,0.00028493,4]
[366709357,1750415609313,-817.57,0.00028493,4]
[366709358,1750415609323,-490.0,0.00028493,4]
[366709359,1750415609334,-490.0,0.00028493,4]
[366709360,1750415609344,-490.0,0.00028493,4]
[366709361,1750415609354,-860.55,0.00028493,4]
[366709362,1750415609364,-490.0,0.00028493,4]
[366709363,1750415609375,-490.0,0.00028493,4]
[366709364,1750415609385,-490.0,0.00028493,4]
[366709365,1750415609396,-490.0,0.00028493,4]
[366709366,1750415609406,-427.02575128,0.00028493,4]
[366709367,1750415609416,-490.0,0.00028493,4]
[366709368,1750415609427,-490.0,0.00028493,4]
[366709369,1750415609437,-490.0,0.00028493,4]
[366709370,1750415609448,-490.0,0.00028493,4]
[366709371,1750415609459,-490.0,0.00028493,4]
[366709372,1750415609468,-490.0,0.00028493,4]
[366709373,1750415609478,-650.85,0.00028493,4]
[366709374,1750415609488,-490.0,0.00028493,4]
[366709375,1750415609498,-490.0,0.00028493,4]
[366709376,1750415609508,-666.55,0.00028493,4]
[366709377,1750415609518,-490.0,0.00028493,4]
[366709378,1750415609528,-490.0,0.00028493,4]
[366709379,1750415609538,-244.38771204,0.00028493,4]
[366709380,1750415609548,-490.0,0.00028493,4]
[366709381,1750415609558,-490.0,0.00028493,4]
[366709382,1750415609568,-490.0,0.00028493,4]
[366709383,1750415609577,-490.0,0.00028493,4]
[366709384,1750415609587,-490.0,0.00028493,4]
[366709385,1750415609597,-172.83832945,0.00028493,4]
[366709386,1750415609607,-497.02,0.00028493,4]
[366709387,1750415609617,-490.0,0.00028493,4]
[366709388,1750415609627,-490.0,0.00028493,4]
[366709389,1750415609637,-561.45,0.00028493,4]
[366709390,1750415609647,-490.0,0.00028493,4]
[366709391,1750415609657,-490.0,0.00028493,4]
[366709392,1750415609666,-490.0,0.00028493,4]
[366709393,1750415609676,-490.0,0.00028493,4]
[366709394,1750415609686,-673.68,0.00028493,4]
[366709395,1750415609696,-490.0,0.00028493,4]
[366709396,1750415609707,-490.0,0.00028493,4]
[366709397,1750415609717,-798.5,0.00028493,4]
[366709398,1750415609727,-490.0,0.00028493,4]
[366709399,1750415609738,-490.0,0.00028493,4]
[366709400,1750415609748,-490.0,0.00028493,4]
[366709401,1750415609760,-490.0,0.00028493,4]
[366709402,1750415609770,-814.97,0.00028493,4]
[366709403,1750415609781,-490.0,0.00028493,4]
[366709404,1750415609791,-2237.34,0.00028493,4]
[366709405,1750415609802,-490.0,0.00028493,4]
[366709406,1750415609813,-997.34,0.00028493,4]
[366709407,1750415609823,-792.52,0.00028493,4]
[366709408,1750415609834,-490.0,0.00028493,4]
[366709409,1750415609844,-490.0,0.00028493,4]
[366709410,1750415609855,-490.0,0.00028493,4]
[366709411,1750415609865,-749.65,0.00028493,4]
[366709412,1750415609876,-490.0,0.00028493,4]
[366709413,1750415609887,-490.0,0.00028493,4]
[366709414,1750415609897,-490.0,0.00028493,4]
[366709415,1750415609907,-870.19,0.00028493,4]
[366709416,1750415609919,-661.75,0.00028493,4]
[366709417,1750415609931,-508.02,0.00028493,4]
[366709418,1750415609942,-490.0,0.00028493,4]
[366709419,1750415609953,-490.0,0.00028493,4]
[366709420,1750415609964,-1294.95,0.00028493,4]
[366709421,1750415609975,-490.0,0.00028493,4]
[366709422,1750415609986,-490.0,0.00028493,4]
[366709423,1750415609997,-490.0,0.00028493,4]
[366709424,1750415610008,-860.83,0.00028493,4]
[366709425,1750415610021,-686.43,0.00028493,4]
[366709426,1750415610034,-1554.68,0.00028493,4]
[366709427,1750415610045,-490.0,0.00028493,4]
[366709428,1750415610056,-490.0,0.00028493,4]
[366709429,1750415610066,-490.0,0.00028493,4]
[366709430,1750415610077,-490.0,0.00028493,4]
[366709431,1750415610088,-275.87849473,0.00028493,4]
[366709432,1750415610098,-620.11,0.00028493,4]
[366709433,1750415610108,-490.0,0.00028493,4]
[366709434,1750415610119,-591.54,0.00028493,4]
[366709435,1750415610130,-1692.44,0.00028493,4]
[366709436,1750415610141,-757.27,0.00028493,4]
[366709437,1750415610151,-490.0,0.00028493,4]
[366709438,1750415610162,-490.0,0.00028493,4]
[366709439,1750415610174,-1478.21,0.00028493,4]
[366709440,1750415610184,-490.0,0.00028493,4]
[366709441,1750415610195,-490.0,0.00028493,4]
[366709442,1750415610206,-1664.77,0.00028493,4]
[366709443,1750415610217,-513.53,0.00028493,4]
[366709444,1750415610228,-1643.07,0.00028493,4]
[366709445,1750415610238,-2421.62,0.00028493,4]
[366709446,1750415610251,-490.0,0.00028493,4]
[366709447,1750415610262,-1002.75,0.00028493,4]
[366709448,1750415610273,-1171.85,0.00028493,4]
[366709449,1750415610283,-490.0,0.00028493,4]
[366709450,1750415610294,-490.0,0.00028493,4]
[366709451,1750415610305,-490.0,0.00028493,4]
[366709452,1750415610650,-490.0,0.00028493,4]
[366709453,1750415610695,-499.57482707,0.00028493,4]
[366709454,1750415610706,-490.0,0.00028493,4]
[366709455,1750415610717,-490.0,0.00028493,4]
[366709456,1750415610727,-513.94,0.00028493,4]
[366709457,1750415610738,-1052.23,0.00028493,4]
[366709458,1750415610749,-1203.58,0.00028493,4]
[366709459,1750415610760,-1052.12,0.00028493,4]
[366709460,1750415610770,-490.0,0.00028493,4]
[366709461,1750415610781,-1116.54,0.00028493,4]
[366709462,1750415610791,-490.0,0.00028493,4]
[366709463,1750415610801,-212.78691785,0.00028493,4]
[366709464,1750415610813,-593.05,0.00028493,4]
[366709465,1750415610823,-490.0,0.00028493,4]
[366709466,1750415610833,-713.86,0.00028493,4]
[366709467,1750415610843,-576.72,0.00028493,4]
[366709468,1750415610853,-1207.78,0.00028493,4]
[366709469,1750415610864,-490.0,0.00028493,4]
[366709470,1750415610874,-490.0,0.00028493,4]
[366709471,1750415610885,-885.97,0.00028493,4]
[366709472,1750415610896,-1286.94,0.00028493,4]
[366709473,1750415610906,-774.59,0.00028493,4]
[366709474,1750415610917,-663.64,0.00028493,4]
[366709475,1750415610927,-362.40232154,0.00028493,4]
[366709476,1750415610938,-689.38,0.00028493,4]
[366709477,1750415610948,-556.07,0.00028493,4]
[366709478,1750415610959,-490.0,0.00028493,4]
[366709479,1750415610970,-490.0,0.00028493,4]
[366709480,1750415610980,-929.62,0.00028493,4]
[366709481,1750415610990,-852.86,0.00028493,4]
[366709482,1750415611000,-540.11,0.00028493,4]
[366709483,1750415611011,-490.0,0.00028493,4]
[366709484,1750415611021,-202.33883994,0.00028493,4]
[366709485,1750415611031,-549.5,0.00028493,4]
[366709486,1750415611041,-490.0,0.00028493,4]
[366709487,1750415611051,-719.33,0.00028493,4]
[366709488,1750415611062,-490.0,0.00028493,4]
[366709489,1750415611072,-1178.9,0.00028493,4]
[366709490,1750415611082,-992.43,0.00028493,4]
[366709491,1750415611093,-490.0,0.00028493,4]
[366709492,1750415611103,-2120.13,0.00028493,4]
[366709493,1750415611115,-490.0,0.00028493,4]
[366709494,1750415611125,-490.0,0.00028493,4]
[366709495,1750415611135,-797.21,0.00028493,4]
[366709496,1750415611146,-2831.45,0.00028493,4]
[366709497,1750415611156,-490.0,0.00028493,4]
[366709498,1750415611166,-1657.46,0.00028493,4]
[366709499,1750415611176,-1176.63,0.00028493,4]
[366709500,1750415611187,-835.13,0.00028493,4]